{"text_format":"1","workbook":"xlsx","n_sheets":3,"sheets":["норма 3","Лист2","Лист1"],"not_rendered":{"charts":0,"images":0,"macros":1,"external_links":2,"defined_names":15,"comments":0,"pivot_tables":0},"unopened":[],"bounds":{"document_bytes":16777216,"sheet_cells":100000,"rows_first":2000,"rows_last":500,"rows_between":2000,"halvings":0,"cell_chars":16384,"cell_head_chars":4096},"cells_cut":0,"cells_raw":0,"read":"whole","date_system":"1900"}

{"sheet":"норма 3","index":0,"n_rows":4,"n_cols":47,"rows_kept":4,"cut":false,"hidden":false,"merged":[[4,0,4,46],[6,0,6,46],[8,0,8,46],[10,0,10,46]]}
["в/зв","Ф.И.О.","Дата призыва на действительную воинскую службу","Воинская часть","Размер головного убора","Размер обмундирования","Размер обуви",null,"Фуражка установленного цвета с кантом","Шапка-ушанка меховая установленного цвета","шапка-ушанка  из каракуля установленного цвета с козырьком","Кепи установленного цвета","Берет установленного цвета","Мундир с погонами и брюки навыпуск установленного цвета с кантами","Мундир светло-серого цвета с погонами (только для полковников)","Китель с погонами и брюки навыпуск установленного цвета с кантами","Брюки навыпуск установленного цвета с кантами","Свитер установленного цвета с погонами","Куртка зимняя установленного цвета с погонами и воротником съемным меховым","Куртка зимняя установленного цвета с погонами с  меховым воротник из каракуля серого цвета","Плащ демисезонный установленного цвета с погонами","Плащ-накидка с ремнем для ношения","Фуражка полевая камуфляжной расцветки","Полевые куртка и брюки прямого покроя камуфляжной расцветки","Полевые утепленные куртка и брюки прямого покроя камуфляжной расцветки с шапкой шерстяной","Полусапожки кожаные утепленные черного цвета","Полуботинки кожаные черного цвета","Ботинки кожаные с высокими берцами черного цвета","Ботинки кожаные с высокими берцами утепленные черного цвета","Рубашка белого цвета с погонами","Рубашка установленного цвета с погонами","Рубашка установленного цвета с короткими рукавами и погонами","Галстук установленного цвета","Эмблема с символикой Вооруженных Сил","Кашне установленного цвета","Перчатки белого цвета","Футболка однотонного цвета","Майка белого цвета","Пояс парадный золотистого цвета","Зажим для галстука","Ремень полевой","Сумка полевая","Спальный мешок с вкладышем и ковриком теплоизоляционным (каримат)","Сумка (рюкзак) с несессером для личных вещей","Аксельбант золотистого цвета","Офисная форма с длинным рукавом","офисная форма с коротким руковом"]
["капитан","Пупкин",null,null,null,null,null,null,1,2,3,4,5,6,7,8,9,10,11,12,13,14,15,16,17,18,19,20,21,22,23,24,25,26,27,28,29,30,31,32,33,34,35,36,37,38,39]
["майор","Иванов",null,null,null,null,null,null,20,12,56,87,74,14,52,35,78,12,4,78,6,78,78,687,768,76,42,78,12,45,78,78,325,85,543,45,456,6,45,654]
["полковник ","Хасенов",null,null,null,null,null,null,14,25,7,5,85,96,9,8,24,85,6,64,65,47,78,21]

{"sheet":"Лист2","index":1,"n_rows":52,"n_cols":10,"rows_kept":52,"cut":false,"hidden":true,"merged":[]}
[null,null,null,null,null,null,null,"головной убор","обмундирования","обувь"]
[null,"2001",null,"полковник ",null,null,null,54,"42/1",34]
[null,2002,null,"подполковник ",null,null,null,55,"42/2",35]
[null,2003,null,"майор",null,null,null,56,"42/3",36]
[null,2004,null,"капитан",null,null,null,57,"44/1",37]
[null,2005,null,"старший лейтенант",null,null,null,58,"44/2",38]
[null,2006,null,"лейтенант",null,null,null,59,"44/3",39]
[null,2007,null,"штаб-сержант",null,null,null,60,"44/4",40]
[null,2008,null,"мастер-сержант",null,null,null,61,"44/5",41]
[null,2009,null,"сержант 1-го класса",null,null,null,62,"44/6",42]
[null,2010,null,"сержант 2-го класса",null,null,null,null,"46/1",43]
[null,2011,null,"сержант 3-го класса",null,null,null,null,"46/2",44]
[null,2012,null,"старший сержант",null,null,null,null,"46/3",45]
[null,2013,null,"сержант ",null,null,null,null,"46/4",46]
[null,2014,null,"младший сержант",null,null,null,null,"46/5",47]
[null,2015,null,"ефрейтор",null,null,null,null,"46/6",48]
[null,2016,null,"рядовой",null,null,null,null,"48/2",49]
[null,2017,null,null,null,null,null,null,"48/3"]
[null,2018,null,null,null,null,null,null,"48/4"]
[null,2019,null,null,null,null,null,null,"48/5"]
[null,2020,null,null,null,null,null,null,"48/6"]
[null,2021,null,null,null,null,null,null,"50/2"]
[null,2022,null,null,null,null,null,null,"50/3"]
[null,2023,null,null,null,null,null,null,"50/4"]
[null,2024,null,null,null,null,null,null,"50/5"]
[null,2025,null,null,null,null,null,null,"50/6"]
[null,2026,null,null,null,null,null,null,"52/2"]
[null,0,null,null,null,null,null,null,"52/3"]
[null,null,null,null,null,null,null,null,"52/4"]
[null,null,null,null,null,null,null,null,"52/5"]
[null,null,null,null,null,null,null,null,"52/6"]
[null,null,null,null,null,null,null,null,"54/2"]
[null,null,null,null,null,null,null,null,"54/3"]
[null,null,null,null,null,null,null,null,"54/4"]
[null,null,null,null,null,null,null,null,"54/5"]
[null,null,null,null,null,null,null,null,"54/6"]
[null,null,null,null,null,null,null,null,"56/3"]
[null,null,null,null,null,null,null,null,"56/4"]
[null,null,null,null,null,null,null,null,"56/5"]
[null,null,null,null,null,null,null,null,"56/6"]
[null,null,null,null,null,null,null,null,"58/3"]
[null,null,null,null,null,null,null,null,"58/4"]
[null,null,null,null,null,null,null,null,"58/5"]
[null,null,null,null,null,null,null,null,"58/6"]
[null,null,null,null,null,null,null,null,"60/3"]
[null,null,null,null,null,null,null,null,"60/4"]
[null,null,null,null,null,null,null,null,"60/5"]
[null,null,null,null,null,null,null,null,"60/6"]
[null,null,null,null,null,null,null,null,"62/3"]
[null,null,null,null,null,null,null,null,"62/4"]
[null,null,null,null,null,null,null,null,"62/5"]
[null,null,null,null,null,null,null,null,"62/6"]

{"sheet":"Лист1","index":2,"n_rows":73,"n_cols":8,"rows_kept":73,"cut":false,"hidden":false,"merged":[[0,0,0,7],[64,3,64,7],[8,2,8,4],[67,4,67,6],[6,1,6,2],[16,2,18,3],[19,2,19,3],[20,2,20,3],[16,0,18,1],[19,0,19,1],[20,0,20,1],[16,4,18,5],[19,4,19,5],[20,4,20,5],[16,6,18,7],[19,6,19,7],[7,0,7,7],[9,0,9,7],[71,0,71,7],[65,0,65,7],[66,0,66,7],[68,0,68,7],[11,3,12,3],[13,4,13,5],[14,4,14,5],[20,6,20,7],[13,6,13,7],[14,6,14,7],[11,4,12,5],[11,6,12,7],[72,0,72,7],[70,0,70,7],[22,6,23,6],[22,7,23,7],[22,2,23,2],[22,0,23,0],[64,0,64,1],[22,1,23,1],[22,3,23,3],[22,4,23,4],[22,5,23,5]]}
["Форма 21"]
[3]
[]
[]
[]
[]
[null,"АТТЕСТАТ №"]
["ВОЕННОСЛУЖАЩЕГО "]
[null,{"$f":"INDEX('норма 3'!A:A,$A$2)","v":"майор"},{"$f":"INDEX('норма 3'!B:B,$A$2)","v":"Иванов"}]
[" (воинское звание, фамилия, имя отчество)"]
[]
["Признак","Регистрационный","№","Код документа","№ документа",null,"Дата документа"]
["информации","номер","листа"]
["000","001","002","003","004",null,"0032"]
[]
[]
["Основание (цель) операция",null,"Служба",null,"Отправитель (воинская часть, подразделение)",null,"Получатель (воинская часть, подразделение)"]
[]
[]
[45,null,46,null,52,null,53]
["Пр.№  от                 2024г",null,"Вещевая",null,"НУО"]
[]
["№ п/п","Наименование материальных средств","Код номенклатуры","Единица измерения","Категория","Количество","Дата выдачи","Количество и дата выдачи прописью"]
[]
[null,2,3,4,5,6,7,8]
[1,"Фуражка установленного цвета",null,"шт","II",1,{"$f":"'норма 3'!I2","v":1}]
[2,"Шапка-ушанка меховая устан.цвета",null,"шт","II",1,{"$f":"'норма 3'!J2","v":2}]
[null,"шапка-ушанка  из каракуля установленного цвета с козырьком",null,"шт","II",1,{"$f":"'норма 3'!K2","v":3}]
[3,"Кепи установленного цвета",null,"шт","II",1,{"$f":"'норма 3'!L2","v":4}]
[4,"Берет установленного цвета",null,"шт","II",1,{"$f":"'норма 3'!M2","v":5}]
[5,"Мундир с погонами и брюки на выпуск установленного цвета с кантом",null,"к-т","II",1,{"$f":"'норма 3'!N2","v":6}]
[6,"Мундир светло-серого цвета",null,"шт","II",1,{"$f":"'норма 3'!O2","v":7}]
[7,"Китель с погонами и брюки на выпуск установленного цвета с кантом",null,"к-т","II",1,{"$f":"'норма 3'!P2","v":8}]
[8,"Брюки навыпуск уст.цвета",null,"шт","II",1,{"$f":"'норма 3'!Q2","v":9}]
[9,"Свитер установленного цвета с погонами",null,"шт","II",1,{"$f":"'норма 3'!R2","v":10}]
[10,"Куртка зимняя установ. цвета с погонами и съемным воротником",null,"шт","II",1,{"$f":"'норма 3'!S2","v":11}]
[null,"Куртка зимняя установленного цвета с погонами с  меховым воротник из каракуля серого цвета",null,"шт","II",1,{"$f":"'норма 3'!T2","v":12}]
[11,"Плащ демисезонный установленного цвета с погонами",null,"шт","II",1,{"$f":"'норма 3'!U2","v":13}]
[12,"Плащ-накидка с ремнем для ношения",null,"шт","II",1,{"$f":"'норма 3'!V2","v":14}]
[13,"Фуражка полевая камуфляжной расцветки",null,"шт","II",1,{"$f":"'норма 3'!W2","v":15}]
[14,"Полевые куртка и брюки прямого покроя",null,"к-т","II",1,{"$f":"'норма 3'!X2","v":16}]
[15,"Полевые утепленные куртка и брюки прямого покроя камуфляжной расцветки с шапкой шерстяной",null,"к-т","II",1,{"$f":"'норма 3'!Y2","v":17}]
[16,"Полусапожки кожаные утепленные черного цвета",null,"пара","II",1,{"$f":"'норма 3'!Z2","v":18}]
[17,"Полуботинки кожаные черного цвета",null,"пара","II",1,{"$f":"'норма 3'!AA2","v":19}]
[18,"Ботинки кожаные с высокими берцами черного цвета",null,"пара","II",1,{"$f":"'норма 3'!AB2","v":20}]
[19,"Ботинки кожаные с высокими берцами утепленные черного цвета",null,"пара","II",1,{"$f":"'норма 3'!AC2","v":21}]
[20,"Рубашка белого цвета с погонами",null,"шт","II",1,{"$f":"'норма 3'!AD2","v":22}]
[21,"Рубашка установленного цвета с погонами",null,"шт","II",2,{"$f":"'норма 3'!AE2","v":23}]
[22,"Рубашка уст.цвета с короткими рукавами с погонами",null,"шт","II",2,{"$f":"'норма 3'!AF2","v":24}]
[23,"Галстук установленного цвета",null,"шт","II",2,{"$f":"'норма 3'!AG2","v":25}]
[24,"Эмблема с символикой ВС РК",null,"шт","II",1,{"$f":"'норма 3'!AH2","v":26}]
[25,"Кашне установленного цвета",null,"шт","II",1,{"$f":"'норма 3'!AI2","v":27}]
[26,"Перчатки белого цвета",null,"пара","II",1,{"$f":"'норма 3'!AJ2","v":28}]
[27,"Футболка однотонного цвета",null,"шт","II",2,{"$f":"'норма 3'!AK2","v":29}]
[28,"Майка белого цвета",null,"шт","II",1,{"$f":"'норма 3'!AL2","v":30}]
[29,"Пояс парадный золотистого цвета",null,"шт","II",1,{"$f":"'норма 3'!AM2","v":31}]
[30,"Зажим для галстука",null,"шт","II",1,{"$f":"'норма 3'!AN2","v":32}]
[31,"Ремень полевой",null,"шт","II",1,{"$f":"'норма 3'!AO2","v":33}]
[32,"Сумка полевая",null,"шт","II",1,{"$f":"'норма 3'!AP2","v":34}]
[33,"Спальный мешок с вкладышем и ковриком теплоизоляционным (каримат)",null,"к-т","II",1,{"$f":"'норма 3'!AQ2","v":35}]
[34,"Сумка (рюкзак) с несессером для личных вещей",null,"к-т","II",1,{"$f":"'норма 3'!AR2","v":36}]
[35,"Аксельбант золотистого цвета",null,"шт","II",1,{"$f":"'норма 3'!AS2","v":37}]
[36,"Офиска с коротким рукавами",null,"к-т","II",1,{"$f":"'норма 3'!AT2","v":38}]
[37,"Офиска с длиными рукавами",null,"к-т","II",1,{"$f":"'норма 3'!AU2","v":39}]
["Итого:",null,{"$f":"F26+F27+F29+F30+F31+F32+F33+F34+F35+F36+F38+F39+F40+F41+F42+F43+F44+F45+F46+F47+F48+F49+F50+F51+F52+F53+F54+F55+F56+F57+F58+F59+F60+F61+F62+F63+F64","v":41},"(тридцать один) наименований"]
["Перечисленные в аттестате материальные средства, их количество, качество "]
["и сроки выдачи  показаны правильно."]
[null,{"$f":"B9","v":"майор"},null,null,{"$f":"C9","v":"Иванов"}]
["      (подпись лица, которому выдан аттестат)"]
[]
["Начальник службы тылового обеспечения НУО "]
["М.П.               майор                                      Назиев А.Б."]
["            (должность, воинское звание, подпись, фамилия)"]